Cogmind - Beta 16 @@@ ROGUE MODE // 2025.12.28 @ 15:01:25 Player: skilledspacepolice Result: Destroyed by K7-RBX(h) with Bolt Gun Performance ------------- Evolutions (0) 0 Regions Visited (3) 600 Robots Destroyed (8) 40 Value Destroyed (280) 280 Prototype IDs (0) 0 Alien Tech Used (0) 0 Bonus (300) 300 TOTAL SCORE: 1220 Bonus ------- Registered with UFD 300 Cogmind --------- Core Integrity 0/250 Matter 300/300 Energy 100/100 System Corruption 2% Temperature Cool (0) Movement Core (100) Ox1 Location -9/Scraptown Parts ------- > --- POWER (1) -------- (None) > --- PROPULSION (2) --- (None) > --- UTILITY (2) ------ Small Storage Unit Signal Interpreter > --- WEAPON (2) ------- (None) > --- INVENTORY (8) ---- Light Nuclear Core Flight Unit Subdweller Optics Propulsion Shielding Subdweller Beam Cannon Scrap Shield Fragment (48) Scrap Shield Fragment (48) Scrap Shield Fragment (47) Peak State ------------ > --- POWER ------------ Subdweller Power Source > --- PROPULSION ------- Flight Unit Flight Unit > --- UTILITY ---------- Small Storage Unit Signal Interpreter > --- WEAPON ----------- Subdweller Laser Battle Rifle > --- INVENTORY -------- Light Nuclear Core Flight Unit Subdweller Optics Sensor Array Propulsion Shielding Subdweller Beam Cannon Scrap Shield Fragment Scrap Shield Fragment [Rating: 11] Favorites ----------- Power Ion Engine Engine Ion Engine Propulsion Flight Unit Wheel Wheel Flight Unit Flight Unit Utility Small Storage Unit Storage Small Storage Unit Processor Signal Interpreter Weapon Subdweller Laser Energy Gun Subdweller Laser Ballistic Gun Subdweller Machine Gun Launcher Grenade Launcher Build | -11 -10 -10 -9 ------- Run | Yrd Mat Sub Scr Slots Evolved . | . . . . Power . | . . . . Propulsion . | . . . . Utility . | . . . . Weapon . | . . . . Parts Attached 14 | 6 2 6 . Power 2 | 1 . 1 . Engine 2 | 1 . 1 . Core . | . . . . Reactor . | . . . . Propulsion 4 | 2 . 2 . Treads . | . . . . Leg . | . . . . Wheel 2 | 2 . . . Hover . | . . . . Flight 2 | . . 2 . Utility 2 | 1 1 . . Device . | . . . . Storage 1 | 1 . . . Processor 1 | . 1 . . Hackware . | . . . . Protection . | . . . . Artifact . | . . . . Weapon 6 | 2 1 3 . Energy Gun 3 | 2 . 1 . Energy Cannon . | . . . . Ballistic Gun 2 | . . 2 . Ballistic Cannon . | . . . . Launcher 1 | . 1 . . Special Weapon . | . . . . Impact Weapon . | . . . . Slashing Weapon . | . . . . Piercing Weapon . | . . . . Special Melee Weapon . | . . . . Unidentified Prototypes . | . . . . Parts Lost 8 | . . 4 4 Power 2 | . . 2 . Propulsion 3 | . . 1 2 Utility . | . . . . Weapon 3 | . . 1 2 Highest Loss Streak 4 | . . 3 4 To Critical Strikes . | . . . . Average Backups 5 | . 4 5 5 Power . | . . 1 1 Propulsion 1 | . 2 1 1 Utility 1 | . . 2 2 Weapon . | . . . 1 Tool/Special . | . . . . Unused Backups 6 | . . 1 5 Power 1 | . . . 1 Propulsion 1 | . . . 1 Utility 3 | . . 1 2 Weapon 1 | . . . 1 Tool/Special . | . . . . Average Slot Usage (%) 89 | . 95 92 84 Engine 5 | . 14 8 . Wheel 7 | . 28 6 . Flight 20 | . . 20 27 Storage 14 | . 14 14 14 Processor 13 | . 9 14 14 Energy Gun 16 | . 23 15 13 Ballistic Gun 10 | . . 11 13 Peak Build Rating 11 | 6 7 11 9 Average Rating 8 | 3 6 9 8 On Entrance 5 | . 6 7 9 Avg Prop Armor Cover (%) . | . . . . Naked Turns . | . . . . Heaviest Build 18 | 14 15 18 13 Greatest Support 26 | 26 26 26 8 Greatest Overweight (x) 3 | 3 . 2 3 Average Overweight (x) . | . . 1 1 Largest Inventory Capacity 8 | 8 8 8 8 Average Capacity 7 | 7 8 8 8 Most Carried 8 | 2 6 8 8 Average Carried 7 | . 5 7 8 Final Capacity 8 | 8 8 8 8 Final Carried 8 | . 6 8 8 Class Distribution -------------------- 100% | Mutant Dominant Class ---------------- Mutant | -10/Materials Mutant | -10/Subcaves Mutant | -9/Scraptown Resources | -11 -10 -10 -9 ----------- Run | Yrd Mat Sub Scr Matter Collected 412 | 219 81 112 . Remotely . | . . . . Salvage Created 287 | . 100 187 . Parts 14 | . 6 8 . Haulers Intercepted . | . . . . Recyclers Shooed . | . . . . Parts Field Recycled . | . . . . Retrieved Matter . | . . . . Parts Self-Destructed 4 | . . 4 . Prevented . | . . . . Parts Restored . | . . . . Kills | -11 -10 -10 -9 ------- Run | Yrd Mat Sub Scr Combat Hostiles Destroyed 7 | . 2 5 . Guns 7 | . 2 5 . Classes Destroyed 3 | . 2 1 . Worker 1 | . 1 . . Grunt 4 | . 2 2 . Subdweller 3 | . . 3 . Best Kill Streak 3 | . 3 2 . Combat Bots Only 2 | . 1 2 . Max Kills in Single Turn 1 | . 1 1 . Gunslinging . | . . . . Exploded . | . . . . Melee . | . . . . Uniques/NPCs Destroyed . | . . . . Combat | -11 -10 -10 -9 -------- Run | Yrd Mat Sub Scr Hostile Shots Fired 82 | . 6 35 41 Missed 21 | . 4 10 7 Hits 61 | . 2 25 34 Projectile 61 | . 2 25 34 Damage Taken 903 | . 23 563 317 Core 251 | . . 136 115 Absorbed by Shields . | . . . . Core Remaining (%) 100 | 100 . . . Volleys Fired 30 | . 6 23 1 Largest 2 | . 2 2 2 Hottest 100 | . 100 100 90 Shots Fired 58 | . 11 45 2 Gun 54 | . 10 42 2 Cannon . | . . . . Launcher 4 | . 1 3 . Special . | . . . . Kinetic 13 | . . 12 1 Thermal 41 | . 10 30 1 Explosive 4 | . 1 3 . Electromagnetic . | . . . . Robot Hit Streak 7 | . 4 7 . Robot Miss Streak 3 | . 2 3 . Penetration Max . | . . . . Secondary Targets . | . . . . Shots Hit Robots 38 | . 6 32 . Core Hits 17 | . 5 12 . Critical Kills . | . . . . Critical Parts Destroyed . | . . . . Critical Strikes 1 | . . 1 . Destroy 1 | . . 1 . Melee Attacks . | . . . . Impact . | . . . . Slashing . | . . . . Piercing . | . . . . Sneak Attacks . | . . . . Combat Hostiles . | . . . . Follow-up Attacks . | . . . . Damage Inflicted 782 | . 75 687 20 Guns 506 | . 75 411 20 Cannons . | . . . . Explosions 276 | . . 276 . Melee . | . . . . Ramming . | . . . . Kinetic 145 | . . 145 . Thermal 361 | . 75 266 20 Explosive 276 | . . 276 . Electromagnetic . | . . . . Impact . | . . . . Slashing . | . . . . Piercing . | . . . . Highest Corruption 2 | . . . 2 Average Corruption 1 | . . . 1 Corruption Purged . | . . . . Corruption Blocked . | . . . . Overload Shots . | . . . . Overflow Damage . | . . . . Projectiles . | . . . . Explosions . | . . . . Melee . | . . . . Knockbacks . | . . . . Impact . | . . . . Kinetic . | . . . . Secondary . | . . . . Self-Inflicted Damage . | . . . . Shots . | . . . . Rammed . | . . . . Targets Rammed . | . . . . Kicked . | . . . . Crushed . | . . . . Highest Temperature 78 | . 78 2 24 Average Temperature 20 | . 32 1 16 Received Heat Transfer 309 | . 12 207 90 Siege Activations . | . . . . Martial Activations . | . . . . Shielding Activations . | . . . . Robots Disrupted . | . . . . Combat Hostiles . | . . . . Robots Corrupted . | . . . . Combat Hostiles . | . . . . Parts Fried . | . . . . Impact Corruptions . | . . . . Robots Melted . | . . . . Combat Hostiles . | . . . . Parts Melted . | . . . . Heat Transferred 963 | . 222 716 25 Parts Sabotaged . | . . . . Parts Stolen . | . . . . Parts Stripped . | . . . . Power Chain Reactions . | . . . . Alert | -11 -10 -10 -9 ------- Run | Yrd Mat Sub Scr Maximum Alert Level . | . . . . Low Security (%) 100 | 100 100 . . Level 1 . | . . . . Level 2 . | . . . . Level 3 . | . . . . Level 4 . | . . . . Level 5 . | . . . . High Security . | . . . . Max Security . | . . . . Peak Influence 90 | . 90 . . Initial . | . . . . Average 20 | . 25 . . Influence Increases 172 | . 122 50 . Destroy 0b10 Robot/C 80 | . 40 40 . Destroy 0b10 Robot/NC 5 | . 5 . . Destroy Leader 20 | . 10 10 . Disable Machine 15 | . 15 . . Destroy Structure 7 | . 7 . . Partial Spotted 15 | . 15 . . Lose Combat Pursuer 30 | . 30 . . Influence Decreases 172 | . 62 110 . Entered New Map 29 | . . 29 . Time Decay 113 | . 62 51 . Lost Part 30 | . . 30 . Squads Dispatched 2 | . 2 . . Investigation 1 | . 1 . . Extermination . | . . . . Reinforcement 1 | . 1 . . Assault . | . . . . Garrison . | . . . . Intercept . | . . . . Searches Triggered . | . . . . Construction Impeded . | . . . . Haulers Reinforced . | . . . . Active Scanning Responses . | . . . . Cargo Convoy Interrupts . | . . . . Stealth | -11 -10 -10 -9 --------- Run | Yrd Mat Sub Scr Distress Signals 2 | . 2 . . Communications Jammed . | . . . . Distress Signals . | . . . . Times Spotted 16 | . 5 5 6 Peak Tracking Total 7 | . 2 2 7 Tactical Retreats 1 | . 1 . . Traps | -11 -10 -10 -9 ------- Run | Yrd Mat Sub Scr Traps Triggered 1 | . . 1 . Indirectly . | . . . . Trap Hack Attempts . | . . . . Triggered . | . . . . Disarmed . | . . . . Reprogrammed . | . . . . Reused . | . . . . Traps Extracted . | . . . . Installed . | . . . . Triggered . | . . . . Machines | -11 -10 -10 -9 ---------- Run | Yrd Mat Sub Scr Machines Disabled 2 | . 1 . 1 Max in Single Turn 1 | . 1 . 1 Machines Repaired . | . . . . Machines Dismantled . | . . . . Machines Sabotaged . | . . . . Overloaded Fab Kills . | . . . . Hacking | -11 -10 -10 -9 --------- Run | Yrd Mat Sub Scr Machines Accessed 2 | . . . 2 Terminals . | . . . . Fabricators . | . . . . Repair Stations . | . . . . Recycling Units . | . . . . Scanalyzers . | . . . . Garrison Access . | . . . . Total Hacks 10 | . . . 10 Successful 10 | . . . 10 Failed . | . . . . Catastrophic . | . . . . Database Lockouts . | . . . . Manual . | . . . . Terminals . | . . . . Fabricators . | . . . . Repair Stations . | . . . . Recycling Units . | . . . . Scanalyzers . | . . . . Garrison Access . | . . . . Terminal Hacks 10 | . . . 10 Record 3 | . . . 3 Robot Analysis 7 | . . . 7 Fabricator Hacks . | . . . . Repair Station Hacks . | . . . . Recycling Unit Hacks . | . . . . Scanalyzer . | . . . . Garrison Access Hacks . | . . . . Unauthorized Hacks . | . . . . Terminals . | . . . . Fabricators . | . . . . Repair Stations . | . . . . Recycling Units . | . . . . Scanalyzers . | . . . . Garrison Access . | . . . . Data Cores Recovered . | . . . . Used . | . . . . Hacking Detections . | . . . . Full Trace Events . | . . . . Feedback Events . | . . . . Feedback Blocked . | . . . . Robot Schematics Acquired . | . . . . Robots Built . | . . . . Authchips . | . . . . Time . | . . . . Total Robot Build Rating . | . . . . Part Schematics Acquired . | . . . . Parts Built . | . . . . Authchips . | . . . . Time . | . . . . Total Part Build Rating . | . . . . Part Studies Acquired . | . . . . Parts Repaired . | . . . . Time . | . . . . Parts Recycled . | . . . . Recycled Matter . | . . . . Retrieved Matter . | . . . . Retrieved Components . | . . . . Parts Scanalyzed . | . . . . Part Schematics Acquired . | . . . . Parts Damaged . | . . . . Bothacking | -11 -10 -10 -9 ------------ Run | Yrd Mat Sub Scr Used RIF Installer . | . . . . Robots Hacked . | . . . . Non-combat . | . . . . Combat . | . . . . Robot Hacks Applied . | . . . . Relay Couplers Released . | . . . . Fabnet Peak Effective % . | . . . . Robots Rewired . | . . . . Allies Hacked . | . . . . Hacks Repelled . | . . . . Allies | -11 -10 -10 -9 -------- Run | Yrd Mat Sub Scr Total Allies . | . . . . Largest Group . | . . . . Highest-Rated Group . | . . . . Highest-Rated Ally . | . . . . Total Orders . | . . . . Ally Attacks . | . . . . Total Damage . | . . . . Kills . | . . . . Allies Corrupted . | . . . . Allies Melted . | . . . . Intel | -11 -10 -10 -9 ------- Run | Yrd Mat Sub Scr Active Infowar (turns) . | . . . . Robot Analysis Total 7 | . . . 7 Derelict Logs Recovered . | . . . . Drone Launches . | . . . . Drone Recoveries . | . . . . Exploration | -11 -10 -10 -9 ------------- Run | Yrd Mat Sub Scr Turns Passed 1572 | 58 249 565 700 Spaces Moved 1189 | 48 201 351 589 Core 16 | 12 . . 4 Treads . | . . . . Legs . | . . . . Wheels 308 | 36 201 71 . Hover . | . . . . Flight 865 | . . 280 585 Fastest Speed 50 | 50 90 80 100 Average Speed 117 | 95 90 136 118 Slowest Speed 280 | 200 90 197 280 Overloaded Moves . | . . . . Propulsion Burnouts . | . . . . Robots Hopped . | . . . . Potential Cave-ins . | . . . . Cave-ins Triggered . | . . . . Exploration Rate (%) 29 | 4 51 19 43 Regions Visited 3 Branch Regions 2 Pre-discovered Areas . | . . . . Known Exits Taken 2 | . 1 1 . Unknown Exits Taken 1 | 1 . . . Scrap Searched 2 | . . 2 . Spaces Dug . | . . . . Terrain Destroyed 21 | . 7 14 . Melee . | . . . . Projectile . | . . . . AOE 21 | . 7 14 . Terrain Rammed . | . . . . Walls Destroyed . | . . . . Machines Disabled . | . . . . Actions | -11 -10 -10 -9 --------- Run | Yrd Mat Sub Scr Total 1301 | 59 258 394 590 Wait 40 | . 40 . . Move 1186 | 47 200 350 589 Hop . | . . . . Pick Up 21 | 6 7 8 . Fast Attach 2 | . . 2 . Attach 14 | 6 3 5 . Detach 2 | . 2 . . Swap 1 | . . 1 . Drop 5 | . . 5 . Fire 30 | . 6 23 1 Melee . | . . . . Ram . | . . . . Kick . | . . . . Crush . | . . . . Escape Stasis . | . . . . Rewire . | . . . . Trap . | . . . . Miscellaneous . | . . . . Route ------- -11/Scrapyard -10/Materials (discovered 2 exits: [*Min] / *Sub) -10/Subcaves (discovered 2 exits: *Mat / *Scr) -9/Scraptown (discovered 1 exit: *Fac) History --------- Turn | Location | Event 23 | -11/Scrapyard | Discovered new exit (range 15) 59 | -11/Scrapyard | Entered Materials 60 | -10/Materials | Met a group of wandering Federalists 278 | -10/Materials | Discovered new exit (range 15) 304 | -10/Materials | Discovered new exit (range 6) 305 | -10/Materials | Build established: Mutant 307 | -10/Materials | Identified exit to Subcaves 308 | -10/Materials | Entered Subcaves 309 | -10/Subcaves | Continued accompanying wandering Federalists (1) 309 | -10/Subcaves | Approached by a straggling Scientist 376 | -10/Subcaves | Shifting Twisted Machinery released Battle Rifle 447 | -10/Subcaves | Lost 3 parts (1p1n1w) 501 | -10/Subcaves | Discovered new exit (range 7) 508 | -10/Subcaves | Identified exit to Materials 558 | -10/Subcaves | Core integrity fell below 50% 872 | -10/Subcaves | Identified exit to Scraptown 873 | -10/Subcaves | Entered Scraptown 995 | -9/Scraptown | Visited UFD Registry 995 | -9/Scraptown | Registered with UFD as "Roughunit" 1069 | -9/Scraptown | Visited Analyses Database 1097 | -9/Scraptown | Visited Abandonware Association 1129 | -9/Scraptown | Learned abandonware demo "REPAIR.EXE" 1324 | -9/Scraptown | Visited Research Penetration Think Tank 1381 | -9/Scraptown | Visited DA-N13 Charitable Foundation 1396 | -9/Scraptown | Visited Scrapoid Pod Storage 1489 | -9/Scraptown | Discovered new exit (range 5) 1494 | -9/Scraptown | Identified exit to Factory 1536 | -9/Scraptown | Visited Chapter 10 1551 | -9/Scraptown | Attacked by Scraptown defenders 1569 | -9/Scraptown | Core integrity fell below 20% 1573 | -9/Scraptown | Destroyed by K7-RBX(h) with Bolt Gun Last Messages --------------- Approaches to Maximizing Derelict Autonomy. Internalizing that and completing three cycles of our training sessions is required for full membership, after which you can opt to help further our research efforts... Or be rebuilt and inserted into the system, at which point I can issue you an ID Mask for emergency situations. 34-6WE(c): I'm afraid Tooljoint will require some extra recovery time. Machine disabled. ANNOUNCEMENT: Intruder alert! Defend Scraptown! Flight Unit destroyed. Sub. Machine Gun destroyed. Bolt penetrates Machine. Sub. Laser destroyed. Flight Unit destroyed. Machine disabled. Bolt penetrates Machine. Penetrated by Bolt. Map ----- +----------------------------------------------------+ | ?????????????????????????????????????????????????? | | ????????????????????????????????????#####????????? | | ????????????????????????????????????#"""#????????? | | ?????###################???####?????#" "#????????? | | ?????"""##"""##""|##"""#??## ##????# < #????????? | | ????#"" ##"" ##""|##!!"#### ###### ##???????? | | ????#"" #???????? | | ????# #???????? | | ????####################### ###########???????? | | ??????????????????????????## ##?????????????????? | | ???????????????????????????# #??????????????????? | | ????????????????############ #??????????????????? | | ????????????????#" """"""""# #??????????????????? | | ?????????????????## " # #??????????????????? | | ?????????????????# ""# #??????????????????? | | ?????????????????# ""# #??????????????????? | | ?????????????????# """"# ##########?????????? | | ?????????????????# " ""# # """""""#?????????? | | ?????????????????# """"# #" ! "#?????????? | | ?????????????????# ""# #" "#?????????? | | ????????????????### "# #" "#?????????? | | ????????????????# # #" "#?????????? | | ????????????????###### ##### ## #######?????????? | | ???????????????#######p##### ## ##???#####??????? | | ???????????"""""""""""h """" "" "#??? #??????? | | ???????? x p @ "#?? $ #??????? | | ???????? "#?? #??????? | | ???????? "#? #????????? | | ????????? j "## ###??????? | | ????????? c #??????? | | ??????????"""""""""""""""""" "## $ #??????? | | ???????????""""""""""""""""" "#? #??????? | | ??????????????############"" "#??######??????? | | "????????????????????????#"" "##########?????? | | ""???????????????????????#"" "## " """"#?????? | | ""???????????????????????#"" "## ""#?????? | | ""?????????????????????###"" "## "#?????? | | ""?????????????######### #"" "## ""#?????? | | "" ??????" ""#?????? | | "" ?????"" "## ""#?????? | | ""#????? " ######### #"" "## """"""#?????? | | ""#???? "???????????###"" "##"""""""#?????? | | ""#???"" "" ????????????#"" "##########?????? | | ""#??? ?????????????#"" "#??????????????? | | ""#???? ?????????????#"" "#??????????????? | | ""###### ################"" "############???? | | """""""""""""""""""""""""""" "## "#???? | | """""""""""""""""""""""""""" ""#???? | | "## """" "#???? | | "## "### "#???? | +----------------------------------------------------+ Best States ------------- Heat Dissipation 25 Energy Generation 15 Energy Capacity 250 Matter Stores 300 Matter Capacity 300 Sight Range 16 Terrain Scan Density 10 Evasion (%) 44 Item Schematics ----------------- None Robot Schematics ------------------ None Fabricated ------------ Nothing Repaired ---------- Nothing Studied --------- None Alien Tech Used ----------------- None Achievements -------------- Armchair Analyst Strength In Numbers Challenges ------------ None Game ------ Seed AmuletReinforcedLeg Manual? 0 Play Time 00:23:06 Cumulative 6.0 hours Start 2025.12.28 @ 14:36:04 End 2025.12.28 @ 15:01:25 Sessions 1 Manual Loads 0 Difficulty Rogue Special Mode None Game No. 6 Rogue 6 Adventurer 0 Explorer 0 Win Type - Total 0 Types 0/0/0/0/0/0/0/0/0/0 Lore% 16 Gallery% 7 Achievement% 8 Wizard Run 0 Options --------- Layout 1 ASCII 0 Keyboard 0 Movement Mouse Keybinds 0 Fullscreen 1 Font 24/Smallcaps Map View 50x35 Zoom Use 0% Tactical HUD 0 Map Filters NONE Filters NONE Steam 1 RUN: 11f9762c-3211-442e-a4cc-1a5c7cdd2e1e